Cogmind - Beta 15 @@@ ROGUE MODE // 2025.10.21 @ 13:43:54 Player: Rentaro Result: Destroyed by QK-DM1(R) with Subdweller Laser Performance ------------- Evolutions (0) 0 Regions Visited (2) 400 Robots Destroyed (38) 190 Value Destroyed (598) 598 Prototype IDs (0) 0 Alien Tech Used (0) 0 Bonus (-5) -5 TOTAL SCORE: 1183 Bonus ------- Friendly Fire -5 Cogmind --------- Core Integrity 0/250 Matter 0/300 Energy 250/250 System Corruption 0% Temperature Cool (6) Movement Walking (120) Location -10/Subcaves Parts ------- > --- POWER (1) -------- Ion Engine > --- PROPULSION (2) --- Aluminum Leg Aluminum Leg > --- UTILITY (2) ------ Medium Storage Unit Structural Scanner > --- WEAPON (2) ------- Light Assault Rifle Battle Cannon > --- INVENTORY (10) --- Ion Engine Aluminum Leg Aluminum Leg Aluminum Leg Assault Rifle Light Assault Rifle Light Assault Rifle Grenade Launcher Peak State ------------ > --- POWER ------------ Ion Engine > --- PROPULSION ------- Aluminum Leg Aluminum Leg > --- UTILITY ---------- Heat Sink Medium Storage Unit > --- WEAPON ----------- Small Laser Assault Rifle > --- INVENTORY -------- Ion Engine Ion Engine Aluminum Leg Aluminum Leg Aluminum Leg Aluminum Leg Aluminum Leg Aluminum Leg Small Storage Unit Structural Scanner [Rating: 8] Favorites ----------- Power Ion Engine Engine Ion Engine Propulsion Aluminum Leg Leg Aluminum Leg Utility Medium Storage Unit Device Structural Scanner Storage Medium Storage Unit Weapon Small Laser Energy Gun Small Laser Ballistic Gun Assault Rifle Ballistic Cannon Battle Cannon Launcher Grenade Launcher Build | -11 -10 -10 ------- Run | Yrd Mat Sub Slots Evolved . | . . . Power . | . . . Propulsion . | . . . Utility . | . . . Weapon . | . . . Parts Attached 21 | 6 13 2 Power 4 | 1 3 . Engine 4 | 1 3 . Core . | . . . Reactor . | . . . Propulsion 6 | 2 3 1 Treads . | . . . Leg 6 | 2 3 1 Wheel . | . . . Hover . | . . . Flight . | . . . Utility 4 | 1 3 . Device 2 | . 2 . Storage 2 | 1 1 . Processor . | . . . Hackware . | . . . Protection . | . . . Artifact . | . . . Weapon 7 | 2 4 1 Energy Gun 3 | 2 1 . Energy Cannon . | . . . Ballistic Gun 2 | . 2 . Ballistic Cannon 1 | . . 1 Launcher 1 | . 1 . Special Weapon . | . . . Impact Weapon . | . . . Slashing Weapon . | . . . Piercing Weapon . | . . . Special Melee Weapon . | . . . Unidentified Prototypes . | . . . Parts Lost 6 | . 5 1 Power 3 | . 3 . Propulsion 2 | . 1 1 Utility . | . . . Weapon 1 | . 1 . Highest Loss Streak 3 | . 3 1 To Critical Strikes . | . . . Average Backups 6 | 2 6 8 Power 1 | . 1 1 Propulsion 4 | 1 4 3 Utility . | . . . Weapon 1 | . . 3 Tool/Special . | . . . Unused Backups 10 | 1 3 6 Power 1 | . . 1 Propulsion 5 | . 2 3 Utility . | . . . Weapon 4 | 1 1 2 Tool/Special . | . . . Average Slot Usage (%) 93 | . 92 99 Engine 13 | . 13 14 Leg 27 | . 27 28 Device 11 | . 10 14 Storage 14 | . 14 14 Energy Gun 14 | . 17 . Ballistic Gun 9 | . 7 18 Ballistic Cannon 1 | . . 8 Peak Build Rating 8 | 6 8 8 Average Rating 6 | 4 6 7 On Entrance 4 | . 6 7 Naked Turns . | . . . Heaviest Build 20 | 10 19 20 Greatest Support 20 | 20 20 20 Greatest Overweight (x) 1 | . 1 1 Average Overweight (x) . | . . . Largest Inventory Capacity 10 | 8 10 10 Average Capacity 9 | 7 9 10 Most Carried 10 | 4 10 9 Average Carried 6 | 2 6 8 Final Capacity 10 | 8 10 10 Final Carried 8 | 3 8 8 Class Distribution -------------------- 70% | Mutant 29% | Scavenger-Mutant Dominant Class ---------------- Mutant | -10/Materials Scavenger-Mutant | -10/Subcaves Resources | -11 -10 -10 ----------- Run | Yrd Mat Sub Matter Collected 388 | 270 118 . Remotely . | . . . Salvage Created 1003 | 141 862 . Parts 88 | 12 76 . Haulers Intercepted 2 | . 2 . Recyclers Shooed 2 | 1 1 . Parts Field Recycled . | . . . Retrieved Matter . | . . . Parts Self-Destructed 5 | . . 5 Prevented . | . . . Kills | -11 -10 -10 ------- Run | Yrd Mat Sub Combat Hostiles Destroyed 19 | . 19 . Guns 19 | . 19 . Classes Destroyed 8 | 2 6 . Builder 6 | . 6 . Tunneler 5 | 4 1 . Hauler 2 | . 2 . Recycler 1 | 1 . . Operator 2 | . 2 . Watcher 3 | . 3 . Swarmer 9 | . 9 . Grunt 10 | . 10 . Best Kill Streak 5 | 5 4 . Combat Bots Only 4 | . 4 . Max Kills in Single Turn 1 | 1 1 . Gunslinging . | . . . Exploded . | . . . Melee . | . . . Uniques/NPCs Destroyed . | . . . Combat | -11 -10 -10 -------- Run | Yrd Mat Sub Hostile Shots Fired 138 | . 128 10 Missed 35 | . 32 3 Hits 103 | . 96 7 Projectile 103 | . 96 7 Damage Taken 1222 | . 969 253 Core 270 | . 193 77 Absorbed by Shields . | . . . Core Remaining (%) 100 | 100 . . Volleys Fired 168 | 12 134 22 Largest 2 | 2 2 2 Hottest 80 | 80 80 40 Shots Fired 265 | 23 217 25 Gun 243 | 23 214 6 Cannon 16 | . . 16 Launcher 6 | . 3 3 Special . | . . . Kinetic 62 | . 40 22 Thermal 197 | 23 174 . Explosive 6 | . 3 3 Electromagnetic . | . . . Robot Hit Streak 12 | 5 12 5 Robot Miss Streak 7 | 4 7 . Penetration Max . | . . . Secondary Targets 3 | . 3 . Max Gunslinging Chain 1 | . 1 . Shots Hit Robots 150 | 13 132 5 Core Hits 57 | 6 51 . Critical Kills . | . . . Critical Parts Destroyed . | . . . Critical Strikes . | . . . Melee Attacks . | . . . Impact . | . . . Slashing . | . . . Piercing . | . . . Sneak Attacks . | . . . Combat Hostiles . | . . . Follow-up Attacks . | . . . Damage Inflicted 1867 | 143 1631 93 Guns 1612 | 143 1469 . Cannons 88 | . . 88 Explosions 154 | . 149 5 Melee . | . . . Ramming 13 | . 13 . Kinetic 316 | . 228 88 Thermal 1384 | 143 1241 . Explosive 154 | . 149 5 Electromagnetic . | . . . Impact . | . . . Slashing . | . . . Piercing . | . . . Highest Corruption . | . . . Average Corruption . | . . . Corruption Purged . | . . . Corruption Blocked . | . . . Overload Shots . | . . . Overflow Damage . | . . . Projectiles . | . . . Explosions . | . . . Melee . | . . . Knockbacks 3 | . . 3 Impact . | . . . Kinetic 3 | . . 3 Secondary . | . . . Self-Inflicted Damage . | . . . Shots . | . . . Rammed . | . . . Targets Rammed 3 | . 3 . Kicked 3 | . 3 . Crushed . | . . . Highest Temperature 96 | 72 96 . Average Temperature 27 | 33 25 . Received Heat Transfer 399 | . 381 18 Siege Activations . | . . . Martial Activations . | . . . Shielding Activations . | . . . Robots Disrupted . | . . . Combat Hostiles . | . . . Robots Corrupted . | . . . Combat Hostiles . | . . . Parts Fried . | . . . Impact Corruptions . | . . . Robots Melted . | . . . Combat Hostiles . | . . . Parts Melted 5 | 1 4 . Heat Transferred 3150 | 325 2825 . Parts Sabotaged . | . . . Parts Stolen . | . . . Parts Stripped . | . . . Power Chain Reactions . | . . . Alert | -11 -10 -10 ------- Run | Yrd Mat Sub Maximum Alert Level . | . . . Low Security (%) 100 | 100 100 . Level 1 . | . . . Level 2 . | . . . Level 3 . | . . . Level 4 . | . . . Level 5 . | . . . High Security . | . . . Max Security . | . . . Peak Influence 158 | 10 158 . Initial . | . . . Average 70 | 1 75 . Influence Increases 690 | 25 665 . Destroy 0b10 Robot/C 380 | . 380 . Destroy 0b10 Robot/NC 95 | 25 70 . Destroy Leader 90 | . 90 . Successful Hack 27 | . 27 . Destroy Structure 23 | . 23 . Lose Combat Pursuer 75 | . 75 . Influence Decreases 690 | 25 522 143 Entered New Map 70 | . . 70 Time Decay 570 | 25 472 73 Lost Part 50 | . 50 . Squads Dispatched 4 | . 4 . Investigation 2 | . 2 . Extermination . | . . . Reinforcement 2 | . 2 . Assault . | . . . Garrison . | . . . Intercept . | . . . Searches Triggered . | . . . Construction Impeded . | . . . Haulers Reinforced . | . . . Active Scanning Responses . | . . . Cargo Convoy Interrupts . | . . . Stealth | -11 -10 -10 --------- Run | Yrd Mat Sub Distress Signals 2 | . 2 . Communications Jammed . | . . . Distress Signals . | . . . Times Spotted 38 | . 36 2 Peak Tracking Total 7 | . 7 2 Tactical Retreats 3 | . 3 . Traps | -11 -10 -10 ------- Run | Yrd Mat Sub Traps Triggered 5 | . 3 2 Indirectly . | . . . Trap Hack Attempts . | . . . Triggered . | . . . Disarmed . | . . . Reprogrammed . | . . . Reused . | . . . Traps Extracted . | . . . Installed . | . . . Triggered . | . . . Machines | -11 -10 -10 ---------- Run | Yrd Mat Sub Machines Disabled . | . . . Max in Single Turn . | . . . Machines Repaired . | . . . Machines Dismantled . | . . . Machines Sabotaged . | . . . Overloaded Fab Kills . | . . . Hacking | -11 -10 -10 --------- Run | Yrd Mat Sub Machines Accessed 9 | . 7 2 Terminals 6 | . 6 . Fabricators . | . . . Repair Stations . | . . . Recycling Units 1 | . 1 . Scanalyzers . | . . . Garrison Access . | . . . Total Hacks 22 | . 19 3 Successful 12 | . 9 3 Failed 10 | . 10 . Catastrophic . | . . . Database Lockouts . | . . . Manual 4 | . 4 . Terminals 17 | . 17 . Fabricators . | . . . Repair Stations . | . . . Recycling Units 2 | . 2 . Scanalyzers . | . . . Garrison Access . | . . . Terminal Hacks 10 | . 7 3 Record 2 | . 1 1 Robot Analysis 1 | . 1 . Open Door 1 | . . 1 Alert Level 1 | . 1 . Locate Traps 1 | . 1 . Dispatch Records 1 | . 1 . Transport Status 1 | . 1 . Registered Components 1 | . 1 . Release Object 1 | . . 1 Fabricator Hacks . | . . . Repair Station Hacks . | . . . Recycling Unit Hacks . | . . . Scanalyzer . | . . . Garrison Access Hacks . | . . . Unauthorized Hacks . | . . . Terminals . | . . . Fabricators . | . . . Repair Stations . | . . . Recycling Units . | . . . Scanalyzers . | . . . Garrison Access . | . . . Data Cores Recovered . | . . . Used . | . . . Hacking Detections 6 | . 6 . Full Trace Events . | . . . Feedback Events . | . . . Feedback Blocked . | . . . Robot Schematics Acquired . | . . . Robots Built . | . . . Authchips . | . . . Time . | . . . Total Robot Build Rating . | . . . Part Schematics Acquired . | . . . Parts Built . | . . . Authchips . | . . . Time . | . . . Total Part Build Rating . | . . . Parts Repaired . | . . . Time . | . . . Parts Recycled . | . . . Recycled Matter . | . . . Retrieved Matter . | . . . Retrieved Components . | . . . Parts Scanalyzed . | . . . Part Schematics Acquired . | . . . Parts Damaged . | . . . Bothacking | -11 -10 -10 ------------ Run | Yrd Mat Sub Used RIF Installer . | . . . Robots Hacked . | . . . Non-combat . | . . . Combat . | . . . Robot Hacks Applied . | . . . Relay Couplers Released . | . . . Fabnet Peak Effective % . | . . . Robots Rewired . | . . . Allies Hacked . | . . . Hacks Repelled . | . . . Allies | -11 -10 -10 -------- Run | Yrd Mat Sub Total Allies . | . . . Largest Group . | . . . Highest-Rated Group . | . . . Highest-Rated Ally . | . . . Total Orders . | . . . Ally Attacks . | . . . Total Damage . | . . . Kills . | . . . Allies Corrupted . | . . . Allies Melted . | . . . Intel | -11 -10 -10 ------- Run | Yrd Mat Sub Active Infowar (turns) 1035 | . 674 361 Structural 1035 | . 674 361 Robot Analysis Total 1 | . 1 . Derelict Logs Recovered . | . . . Drone Launches . | . . . Drone Recoveries . | . . . Exploration | -11 -10 -10 ------------- Run | Yrd Mat Sub Turns Passed 2133 | 120 1652 361 Spaces Moved 1215 | 58 980 177 Core 4 | 4 . . Treads . | . . . Legs 1211 | 54 980 177 Wheels . | . . . Hover . | . . . Flight . | . . . Fastest Speed 50 | 50 120 120 Average Speed 120 | 115 120 120 Slowest Speed 190 | 120 190 190 Overloaded Moves . | . . . Propulsion Burnouts . | . . . Robots Hopped . | . . . Potential Cave-ins . | . . . Cave-ins Triggered . | . . . Exploration Rate (%) 38 | 5 99 11 Regions Visited 2 Branch Regions 1 Pre-discovered Areas . | . . . Known Exits Taken . | . . . Unknown Exits Taken 2 | 1 1 . Scrap Searched . | . . . Spaces Dug . | . . . Terrain Destroyed 54 | . 30 24 Melee . | . . . Projectile . | . . . AOE 54 | . 30 24 Terrain Rammed . | . . . Walls Destroyed . | . . . Machines Disabled . | . . . Actions | -11 -10 -10 --------- Run | Yrd Mat Sub Total 1620 | 87 1238 295 Wait 172 | 3 78 91 Move 1213 | 57 979 177 Hop . | . . . Pick Up 23 | 6 17 . Fast Attach 10 | 4 5 1 Attach 11 | 3 7 1 Detach 3 | 1 1 1 Swap 6 | . 5 1 Drop 10 | 1 9 . Fire 168 | 12 134 22 Melee . | . . . Ram . | . . . Kick 3 | . 3 . Crush . | . . . Escape Stasis . | . . . Rewire . | . . . Trap . | . . . Miscellaneous 1 | . . 1 Route ------- -11/Scrapyard -10/Materials (discovered 5 exits: [*Mat x3] / [*Min] / *Sub) -10/Subcaves History --------- Turn | Location | Event 5 | -11/Scrapyard | Discovered new exit (range 15) 121 | -11/Scrapyard | Entered Materials 312 | -10/Materials | Build established: Mutant 767 | -10/Materials | Lost 3 parts (1p1n1w) 853 | -10/Materials | Core integrity fell below 50% 875 | -10/Materials | Discovered new exit (range 16) 963 | -10/Materials | Discovered new exit (range 12) 1051 | -10/Materials | Discovered new exit (range 6) 1607 | -10/Materials | Discovered new exit (range 6) 1692 | -10/Materials | Discovered new exit (range 12) 1773 | -10/Materials | Entered Subcaves 1774 | -10/Subcaves | Approached by a straggling Scientist 1798 | -10/Subcaves | Build established: Scavenger-Mutant 1823 | -10/Subcaves | Released subatomizers from SUBCON Basin 1888 | -10/Subcaves | Shifting Twisted Machinery released Battle Cannon 1890 | -10/Subcaves | Shifting Twisted Machinery released Sub. Optics 1960 | -10/Subcaves | Core integrity fell below 20% 2134 | -10/Subcaves | Destroyed by QK-DM1(R) with Subdweller Laser Last Messages --------------- 01912_ The unstable cave ceiling collapses. 46-UU4(c): "I think it's somewhere southeast of here" 01947_ Triggered Piercing Trap. 01947_ Spikes shoot up from the floor. 01947_ Critical hit (Impale). 01959_ Triggered Piercing Trap. 01959_ Spikes shoot up from the floor. 01959_ Critical hit (Impale). 46-UU4(c): "I think it's somewhere southeast of here" 01991_ AK-DA7(u) builds Twisted Machinery. 46-UU4(c): "I think it's somewhere southeast of here" 02096_ AK-DA7(u) builds Twisted Machinery. 02102_ Aluminum Leg destroyed. 02110_ AK-DA7(u) builds Twisted Machinery. 02117_ P0-BCK(R) knocked back. 46-UU4(c): "I think it's somewhere southeast of here" Map ----- +----------------------------------------------------+ | ???????????????????### """" #### | | ???????????????????### #### | | ???????????????????### # # #### | | ???????????????????## " ############ | | ???????????????????#### # ############# ## | | ???????????????????##### #####?#####?#### # ## | | ??????????????????##### ################ ### | | ?????????????????""###" ##### ###### #### | | ????????? """"""" """""" ##### ## | | ???????? """"""" """ """ ## ??## | | ???????? # ?? ??? | | ???????? ### ???? ??? | | ?????????? ## ##?????? ???## | | ?????????? ### ##^ ###?????? ## ???## | | ??????????? ### ######## ####???????####????? | | ????????????#### ######## ####????????????????? | | ?????????????############ ####?????????????????? | | ??????????????####### ###??????????????????? | | ???????????????????## ""####?????????????????? | | ???????????????????## ""####?????????????????? | | ???????????????????### """"# ?????????????????? | | ?????????????????###### """" ????????????????? | | ????????????????###### #### # ???????????????? | | ???????????????#### ##% ##### ????????????????? | | ???????????????### % R#####" ?????????????????? | | ????????????? ### % @" "##??????????????????? | | ?????????????## ### "#R # ?? ##?????????????? | | ?????????????#### ####""##" ###????????????? | | ?????????????########"" ##" ###????????????? | | ???????????????####### ### ###???????????? | | ???????????????????### ## """##???????????? | | ???????????????????"#" """" ##???????????? | | ????????????? """ #"""" ???????????? | | ?????????????## ####? ## ???????????? | | ????????????? ### "## ####? ### ## ???????????? | | ????????????? ############???#########???????????? | | ??????????????? ########???????####????????????? | | ?????????????????????????????????????????????????? | | ?????????????????????????????????????????????????? | | ?????????????????????????????????????????????????? | | ?????????????????????????????????????????????????? | | ?????????????????????????????????????????????????? | | ?????????????????????????????????????????????????? | | ?????????????????????????????????????????????????? | | ?????????????????????????????????????????????????? | | ?????????????????????????????????????????????????? | | ?????????????????????????????????????????????????? | | ?????????????????????????????????????????????????? | | ?????????????????????????????????????????????????? | | ?????????????????????????????????????????????????? | +----------------------------------------------------+ Best States ------------- Heat Dissipation 35 Energy Generation 10 Energy Capacity 250 Matter Stores 300 Matter Capacity 300 Sight Range 16 Terrain Scan Density 10 Evasion (%) 55 Item Schematics ----------------- None Robot Schematics ------------------ None Fabricated ------------ Nothing Repaired ---------- Nothing Alien Tech Used ----------------- None Achievements -------------- None Challenges ------------ None Game ------ Seed CentriumReflexLog Manual? 0 Play Time 00:25:13 Cumulative 63.5 hours Start 2025.10.21 @ 13:17:45 End 2025.10.21 @ 13:43:54 Sessions 1 Manual Loads 0 Difficulty Rogue Special Mode None Game No. 33 Rogue 33 Adventurer 0 Explorer 0 Win Type - Total 1 Types 0/0/0/1/0/0/0/0/0/0 Lore% 28 Gallery% 31 Achievement% 39 Wizard Run 0 Options --------- Layout 1 ASCII 0 Keyboard 0 Movement Mouse Keybinds 0 Fullscreen 1 Font 24/Terminus Map View 50x35 Zoom Use 0% Tactical HUD 1 Map Filters NONE Filters NONE Steam 1 RUN: 62759f7a-cccc-458c-859e-0d4f9c7c1ca9